[Event "*** Titled Tuesday 3|2 Blitz"]
[Site "Chess.com"]
[Date "2016.05.03"]
[Round "2"]
[White "GMG"]
[Black "dretch"]
[Result "1-0"]
[WhiteElo "2447"]
[BlackElo "2562"]
[TimeControl "180+2"]
[EndTime "11:23:22 PDT"]
[Termination "GMG won by resignation"]

1. d4 {[%clk 0:03:01.9]} 1... d5 {[%clk 0:03:00.6]} 2. Bg5 {[%clk 0:02:57.9]}
2... h6 {[%clk 0:02:59.2]} 3. Bh4 {[%clk 0:02:58.6]} 3... c6 {[%clk 0:03:00.4]}
4. e3 {[%clk 0:02:59.2]} 4... Qb6 {[%clk 0:03:01.5]} 5. b3 {[%clk 0:03:00.7]}
5... e5 {[%clk 0:03:00.6]} 6. Nf3 {[%clk 0:03:01.5]} 6... Bg4 {[%clk 0:02:57.7]}
7. Be2 {[%clk 0:02:56]} 7... Nd7 {[%clk 0:02:56.3]} 8. O-O {[%clk 0:02:54]} 8...
e4 {[%clk 0:02:55.4]} 9. Nfd2 {[%clk 0:02:54.8]} 9... Bxe2 {[%clk 0:02:52]} 10.
Qxe2 {[%clk 0:02:56.7]} 10... Be7 {[%clk 0:02:51.9]} 11. Bg3 {[%clk 0:02:55.1]}
11... Ngf6 {[%clk 0:02:44.8]} 12. c4 {[%clk 0:02:55.8]} 12... O-O {[%clk
0:02:41.8]} 13. Nc3 {[%clk 0:02:56.3]} 13... Qa5 {[%clk 0:02:33]} 14. Rfc1
{[%clk 0:02:24.1]} 14... Bb4 {[%clk 0:02:32.9]} 15. Ndb1 {[%clk 0:02:24.2]}
15... dxc4 {[%clk 0:02:12.3]} 16. bxc4 {[%clk 0:02:24.3]} 16... Rfe8 {[%clk
0:01:58.8]} 17. a3 {[%clk 0:02:24.3]} 17... Bf8 {[%clk 0:01:34.6]} 18. Qc2
{[%clk 0:02:23.8]} 18... c5 {[%clk 0:01:27.1]} 19. d5 {[%clk 0:02:13]} 19... a6
{[%clk 0:00:52.7]} 20. Nd2 {[%clk 0:02:05.9]} 20... b5 {[%clk 0:00:53.9]} 21.
Ncxe4 {[%clk 0:01:58.6]} 21... Rac8 {[%clk 0:00:48.3]} 22. Nc3 {[%clk
0:01:53.2]} 22... Qd8 {[%clk 0:00:39]} 23. cxb5 {[%clk 0:01:49.8]} 23... axb5
{[%clk 0:00:40]} 24. Nxb5 {[%clk 0:01:50.7]} 24... Nxd5 {[%clk 0:00:40.8]} 25.
Nc4 {[%clk 0:01:50.6]} 25... Re6 {[%clk 0:00:30.8]} 26. Rd1 {[%clk 0:01:47]}
26... N5f6 {[%clk 0:00:31.8]} 27. a4 {[%clk 0:01:45.2]} 27... Qe7 {[%clk
0:00:16.4]} 28. Bd6 {[%clk 0:01:33.8]} 28... Qd8 {[%clk 0:00:17.5]} 29. Bg3
{[%clk 0:01:30.4]} 29... Ra6 {[%clk 0:00:17]} 30. a5 {[%clk 0:01:29]} 30... Rcc6
{[%clk 0:00:17.2]} 31. h3 {[%clk 0:01:23.5]} 31... Qc8 {[%clk 0:00:16.3]} 32.
Qf5 {[%clk 0:01:21.7]} 32... Re6 {[%clk 0:00:16.6]} 33. Qd3 {[%clk 0:01:19]}
33... Rec6 {[%clk 0:00:12.5]} 34. Nc3 {[%clk 0:01:18]} 34... Qa8 {[%clk
0:00:12.9]} 35. e4 {[%clk 0:01:15.7]} 35... Nb8 {[%clk 0:00:08.7]} 36. e5 {[%clk
0:01:10]} 36... Ne8 {[%clk 0:00:09]} 37. Nd5 {[%clk 0:01:07.9]} 37... Qa7 {[%clk
0:00:09.4]} 38. Ndb6 {[%clk 0:01:04.8]} 38... Qb7 {[%clk 0:00:09.1]} 39. Rab1
{[%clk 0:01:00.9]} 39... Qa7 {[%clk 0:00:09.7]} 40. Qe4 {[%clk 0:00:58.4]} 40...
Nc7 {[%clk 0:00:09.8]} 41. Rd8 {[%clk 0:00:55.3]} 41... Ne6 {[%clk 0:00:10.7]}
42. Rxb8 {[%clk 0:00:53.5]} 42... Qxb8 {[%clk 0:00:08.2]} 43. Qxc6 {[%clk
0:00:54.3]} 43... Nd4 {[%clk 0:00:09.9]} 44. Qc8 {[%clk 0:00:51.3]} 44... Qa7
{[%clk 0:00:05.7]} 45. e6 {[%clk 0:00:43.1]} 45... fxe6 {[%clk 0:00:04.5]} 46.
Be5 {[%clk 0:00:40.3]} 46... Nf5 {[%clk 0:00:03.3]} 47. Qxe6+ {[%clk 0:00:39.9]}
47... Qf7 {[%clk 0:00:04.5]} 48. Qxf7+ {[%clk 0:00:40.5]} 48... Kxf7 {[%clk
0:00:06.4]} 49. Rd1 {[%clk 0:00:33.5]} 49... Be7 {[%clk 0:00:06.6]} 50. g4
{[%clk 0:00:32.8]} 50... Nh4 {[%clk 0:00:07.1]} 51. Rd3 {[%clk 0:00:32.5]} 51...
g5 {[%clk 0:00:07.4]} 52. Bd6 {[%clk 0:00:32.6]} 52... Bf6 {[%clk 0:00:05.7]}
53. Bxc5 {[%clk 0:00:29.5]} 53... Ng6 {[%clk 0:00:07.3]} 54. Rd7+ {[%clk
0:00:28.1]} 54... Ke6 {[%clk 0:00:07.6]} 55. Rd6+ {[%clk 0:00:29]} 55... Kf7
{[%clk 0:00:08.4]} 56. Nd7 {[%clk 0:00:28.2]} 56... Rxd6 {[%clk 0:00:08.1]} 57.
Nxd6+ {[%clk 0:00:29.1]} 57... Ke6 {[%clk 0:00:09]} 58. Nxf6 {[%clk 0:00:30.7]}
58... Kxf6 {[%clk 0:00:09.5]} 59. a6 {[%clk 0:00:32.1]} 1-0

[Event "*** Titled Tuesday 3|2 Blitz"]
[Site "Chess.com"]
[Date "2016.05.03"]
[Round "2"]
[White "ZivkovicN"]
[Black "Bentery"]
[Result "1-0"]
[WhiteElo "2387"]
[BlackElo "2362"]
[TimeControl "180+2"]
[EndTime "11:23:30 PDT"]
[Termination "ZivkovicN won by resignation"]

1. e4 {[%clk 0:02:46]} 1... e6 {[%clk 0:03:00.8]} 2. d3 {[%clk 0:02:46.6]} 2...
c5 {[%clk 0:03:01.1]} 3. Nd2 {[%clk 0:02:48]} 3... Nc6 {[%clk 0:03:02.3]} 4.
Ngf3 {[%clk 0:02:49.7]} 4... g6 {[%clk 0:03:03.3]} 5. Be2 {[%clk 0:02:50.7]}
5... Bg7 {[%clk 0:03:04.5]} 6. O-O {[%clk 0:02:52.4]} 6... d6 {[%clk 0:03:05.7]}
7. c3 {[%clk 0:02:53.9]} 7... Nge7 {[%clk 0:03:06.6]} 8. Re1 {[%clk 0:02:55.4]}
8... O-O {[%clk 0:03:07.6]} 9. Nf1 {[%clk 0:02:56.8]} 9... e5 {[%clk 0:03:07.9]}
10. a3 {[%clk 0:02:53.7]} 10... h6 {[%clk 0:03:08.1]} 11. b4 {[%clk 0:02:55.2]}
11... Be6 {[%clk 0:03:05.3]} 12. Bb2 {[%clk 0:02:56.3]} 12... f5 {[%clk
0:03:05.7]} 13. N1d2 {[%clk 0:02:56.1]} 13... Qd7 {[%clk 0:03:04.1]} 14. Bf1
{[%clk 0:02:57.1]} 14... f4 {[%clk 0:03:03.3]} 15. h3 {[%clk 0:02:52.1]} 15...
g5 {[%clk 0:03:04]} 16. Nh2 {[%clk 0:02:53.2]} 16... Ng6 {[%clk 0:03:00.1]} 17.
Be2 {[%clk 0:02:54]} 17... Nh4 {[%clk 0:02:58.7]} 18. Bg4 {[%clk 0:02:54.9]}
18... Kh8 {[%clk 0:02:40]} 19. Bxe6 {[%clk 0:02:55.2]} 19... Qxe6 {[%clk
0:02:40.9]} 20. Qg4 {[%clk 0:02:56.8]} 20... Qf7 {[%clk 0:02:41.9]} 21. Ndf3
{[%clk 0:02:13.4]} 21... Nxf3+ {[%clk 0:02:42.2]} 22. Nxf3 {[%clk 0:02:12.3]}
22... Bf6 {[%clk 0:02:43.4]} 23. Nh2 {[%clk 0:01:52.1]} 23... h5 {[%clk
0:02:43.7]} 24. Qd1 {[%clk 0:01:53.2]} 24... Rg8 {[%clk 0:02:44.9]} 25. f3
{[%clk 0:01:54.3]} 25... b6 {[%clk 0:02:43.9]} 26. b5 {[%clk 0:01:50.2]} 26...
Ne7 {[%clk 0:02:43.5]} 27. d4 {[%clk 0:01:51.5]} 27... cxd4 {[%clk 0:02:42.1]}
28. cxd4 {[%clk 0:01:53.4]} 28... Ng6 {[%clk 0:02:41.9]} 29. Rc1 {[%clk
0:01:47.1]} 29... Rac8 {[%clk 0:02:42.4]} 30. Rc6 {[%clk 0:01:42.8]} 30... Rxc6
{[%clk 0:02:30.3]} 31. bxc6 {[%clk 0:01:44.7]} 31... exd4 {[%clk 0:02:31.5]} 32.
Bxd4 {[%clk 0:01:45.5]} 32... Rc8 {[%clk 0:02:32]} 33. Bxf6+ {[%clk 0:01:43.8]}
33... Qxf6 {[%clk 0:02:33.4]} 34. Qd5 {[%clk 0:01:43.6]} 34... Ne7 {[%clk
0:02:33.5]} 35. Qb5 {[%clk 0:01:19.1]} 35... Rxc6 {[%clk 0:02:31.7]} 36. e5
{[%clk 0:01:17.2]} 36... dxe5 {[%clk 0:02:33.6]} 37. Rxe5 {[%clk 0:01:17.2]}
37... Rc1+ {[%clk 0:02:34.3]} 38. Nf1 {[%clk 0:01:18.5]} 38... Nc6 {[%clk
0:02:34.4]} 39. Rxg5 {[%clk 0:01:06.7]} 39... Rc5 {[%clk 0:01:31.9]} 40. Rxh5+
{[%clk 0:01:02.9]} 40... Kg7 {[%clk 0:01:32.7]} 41. Rxc5 {[%clk 0:00:57.5]}
41... Qd4+ {[%clk 0:01:33.9]} 42. Kh2 {[%clk 0:00:56.4]} 42... Qxc5 {[%clk
0:01:35.8]} 43. Qxc5 {[%clk 0:00:49.7]} 43... bxc5 {[%clk 0:01:37.7]} 44. g3
{[%clk 0:00:48.8]} 44... c4 {[%clk 0:01:29.2]} 45. Nd2 {[%clk 0:00:42.9]} 45...
c3 {[%clk 0:01:29.4]} 46. Nb3 {[%clk 0:00:42.8]} 46... c2 {[%clk 0:01:30.2]} 47.
gxf4 {[%clk 0:00:39.8]} 47... Nd4 {[%clk 0:01:31.1]} 48. Nc1 {[%clk 0:00:41.1]}
48... Kf6 {[%clk 0:01:27.3]} 49. Kg3 {[%clk 0:00:40.2]} 49... Kf5 {[%clk
0:01:27.3]} 50. h4 {[%clk 0:00:41.6]} 50... Ne2+ {[%clk 0:01:27.3]} 51. Kf2
{[%clk 0:00:42.4]} 51... Nxf4 {[%clk 0:01:28]} 52. Kg3 {[%clk 0:00:26.7]} 52...
Ke5 {[%clk 0:01:26.3]} 53. Kg4 {[%clk 0:00:24.9]} 53... Ne6 {[%clk 0:01:19.5]}
54. h5 {[%clk 0:00:24.8]} 54... Kd4 {[%clk 0:01:19.8]} 55. Kf5 {[%clk
0:00:22.8]} 55... Nf8 {[%clk 0:01:05.5]} 56. f4 {[%clk 0:00:20.6]} 56... Ke3
{[%clk 0:01:04]} 57. h6 {[%clk 0:00:20.5]} 57... Kd2 {[%clk 0:01:04.2]} 58. Na2
{[%clk 0:00:21.1]} 58... Kd3 {[%clk 0:01:01.8]} 59. Kf6 {[%clk 0:00:22.2]} 59...
Ke4 {[%clk 0:01:01.8]} 60. f5 {[%clk 0:00:23.4]} 60... Kf4 {[%clk 0:00:51.9]}
61. Kg7 {[%clk 0:00:23.3]} 61... Kxf5 {[%clk 0:00:52.6]} 62. Kxf8 {[%clk
0:00:21.6]} 62... Kg6 {[%clk 0:00:54]} 63. Ke7 {[%clk 0:00:22.7]} 63... Kxh6
{[%clk 0:00:55.3]} 64. Kd6 {[%clk 0:00:24.3]} 64... Kg6 {[%clk 0:00:56.7]} 65.
Kc5 {[%clk 0:00:24.2]} 65... Kf5 {[%clk 0:00:58.6]} 66. Kc4 {[%clk 0:00:25.7]}
66... Ke4 {[%clk 0:01:00]} 67. Kc3 {[%clk 0:00:27.1]} 67... Kd5 {[%clk
0:01:01.3]} 68. Kxc2 {[%clk 0:00:28]} 68... Kc4 {[%clk 0:01:03.2]} 69. Kb2
{[%clk 0:00:29.4]} 69... a5 {[%clk 0:01:03.4]} 70. Nc3 {[%clk 0:00:29.7]} 1-0

[Event "*** Titled Tuesday 3|2 Blitz"]
[Site "Chess.com"]
[Date "2016.05.03"]
[Round "2"]
[White "GeorgMeier"]
[Black "Aygehovit1992"]
[Result "1-0"]
[WhiteElo "2754"]
[BlackElo "2508"]
[TimeControl "180+2"]
[EndTime "11:23:31 PDT"]
[Termination "GeorgMeier won by resignation"]

1. Nf3 {[%clk 0:03:01.9]} 1... g6 {[%clk 0:02:59.8]} 2. g3 {[%clk 0:03:03.6]}
2... Bg7 {[%clk 0:03:00.9]} 3. d4 {[%clk 0:03:05.1]} 3... Nf6 {[%clk 0:03:01.3]}
4. Bg2 {[%clk 0:03:06.6]} 4... O-O {[%clk 0:03:03.2]} 5. O-O {[%clk 0:03:08.5]}
5... d6 {[%clk 0:03:04.8]} 6. b3 {[%clk 0:03:10.1]} 6... a5 {[%clk 0:03:04.7]}
7. a4 {[%clk 0:03:10]} 7... Na6 {[%clk 0:03:04.8]} 8. Bb2 {[%clk 0:03:10.7]}
8... Bf5 {[%clk 0:03:03.7]} 9. Nbd2 {[%clk 0:03:10.3]} 9... Qc8 {[%clk
0:03:03.8]} 10. Re1 {[%clk 0:03:10.9]} 10... Bh3 {[%clk 0:03:03.8]} 11. e4
{[%clk 0:03:10.3]} 11... Bxg2 {[%clk 0:03:04.2]} 12. Kxg2 {[%clk 0:03:11.4]}
12... c6 {[%clk 0:03:03.7]} 13. Qe2 {[%clk 0:02:55.6]} 13... Nc7 {[%clk
0:02:26.5]} 14. Ba3 {[%clk 0:02:43]} 14... Re8 {[%clk 0:02:25.4]} 15. c4 {[%clk
0:02:26.4]} 15... Nd7 {[%clk 0:02:03.3]} 16. Rad1 {[%clk 0:02:24.1]} 16... Ne6
{[%clk 0:01:55.7]} 17. d5 {[%clk 0:02:02.4]} 17... Nec5 {[%clk 0:01:54.5]} 18.
Qe3 {[%clk 0:02:03.4]} 18... e6 {[%clk 0:01:43.5]} 19. dxe6 {[%clk 0:01:53.2]}
19... Rxe6 {[%clk 0:01:40.3]} 20. Nd4 {[%clk 0:01:51]} 20... Re8 {[%clk
0:01:39.1]} 21. f3 {[%clk 0:01:50.6]} 21... Qc7 {[%clk 0:01:25.5]} 22. h4 {[%clk
0:01:19.6]} 22... Rad8 {[%clk 0:01:22.1]} 23. Nb1 {[%clk 0:01:20.2]} 23... Ne5
{[%clk 0:01:18.3]} 24. Nc3 {[%clk 0:01:17.3]} 24... f5 {[%clk 0:01:13.7]} 25.
Bxc5 {[%clk 0:01:09.3]} 25... dxc5 {[%clk 0:01:13.5]} 26. Nde2 {[%clk
0:01:10.8]} 26... Rxd1 {[%clk 0:01:09.2]} 27. Rxd1 {[%clk 0:01:12.7]} 27... b6
{[%clk 0:00:50.5]} 28. exf5 {[%clk 0:01:05.1]} 28... Qf7 {[%clk 0:00:50.1]} 29.
fxg6 {[%clk 0:00:53.6]} 29... Nxg6 {[%clk 0:00:49.7]} 30. Ne4 {[%clk 0:00:53.9]}
30... Be5 {[%clk 0:00:43.9]} 31. h5 {[%clk 0:00:54.7]} 31... Nf8 {[%clk
0:00:39.2]} 32. Qg5+ {[%clk 0:00:55.7]} 32... Kh8 {[%clk 0:00:38.9]} 33. Rd8
{[%clk 0:00:50.5]} 33... Ba1 {[%clk 0:00:24.6]} 34. Nf4 {[%clk 0:00:49.1]} 34...
Rxd8 {[%clk 0:00:21.3]} 35. Qxd8 {[%clk 0:00:50.1]} 35... Kg7 {[%clk 0:00:18.2]}
36. Qc8 {[%clk 0:00:40.8]} 36... Be5 {[%clk 0:00:18.5]} 37. Qg4+ {[%clk
0:00:39.1]} 37... Kh8 {[%clk 0:00:19.4]} 38. Nd3 {[%clk 0:00:36.1]} 38... Bd4
{[%clk 0:00:19.9]} 39. Ng5 {[%clk 0:00:35.2]} 39... Qf6 {[%clk 0:00:20.5]} 40.
Ne4 {[%clk 0:00:35.9]} 40... Qf7 {[%clk 0:00:20.9]} 41. h6 {[%clk 0:00:37]}
41... Ne6 {[%clk 0:00:21.1]} 42. Ng5 {[%clk 0:00:35.7]} 42... Nxg5 {[%clk
0:00:21.1]} 43. Qxg5 {[%clk 0:00:37.6]} 43... Bf6 {[%clk 0:00:20.9]} 44. Qf5
{[%clk 0:00:36.5]} 44... Kg8 {[%clk 0:00:21.2]} 45. Nf4 {[%clk 0:00:36.3]} 45...
Be7 {[%clk 0:00:16.9]} 46. Qxf7+ {[%clk 0:00:34.5]} 46... Kxf7 {[%clk
0:00:17.6]} 47. Kh3 {[%clk 0:00:36]} 47... Kf6 {[%clk 0:00:18.3]} 48. Kg4 {[%clk
0:00:37]} 48... Ke5 {[%clk 0:00:19.6]} 49. Nh3 {[%clk 0:00:37.1]} 49... Kd4
{[%clk 0:00:20]} 50. Ng5 {[%clk 0:00:38.1]} 50... Kc3 {[%clk 0:00:20.2]} 51.
Nxh7 {[%clk 0:00:34.5]} 51... Kxb3 {[%clk 0:00:21.7]} 52. f4 {[%clk 0:00:36.1]}
52... Kxa4 {[%clk 0:00:21.2]} 53. f5 {[%clk 0:00:36.8]} 53... b5 {[%clk
0:00:22.5]} 54. f6 {[%clk 0:00:38]} 54... Bd6 {[%clk 0:00:22.6]} 55. Ng5 {[%clk
0:00:37.2]} 55... b4 {[%clk 0:00:15.9]} 56. h7 {[%clk 0:00:36.4]} 56... b3
{[%clk 0:00:17.2]} 57. Ne4 {[%clk 0:00:36.9]} 57... b2 {[%clk 0:00:16.4]} 58.
Nd2 {[%clk 0:00:38.2]} 1-0

[Event "*** Titled Tuesday 3|2 Blitz"]
[Site "Chess.com"]
[Date "2016.05.03"]
[Round "2"]
[White "pKiLz5Rn9b"]
[Black "Fh2411"]
[Result "1-0"]
[WhiteElo "2398"]
[BlackElo "2272"]
[TimeControl "180+2"]
[EndTime "11:23:46 PDT"]
[Termination "pKiLz5Rn9b won by resignation"]

1. e4 {[%clk 0:03:01.9]} 1... e5 {[%clk 0:03:00.1]} 2. Nf3 {[%clk 0:03:02.9]}
2... Nc6 {[%clk 0:03:01.1]} 3. Bc4 {[%clk 0:03:04]} 3... Bc5 {[%clk 0:03:00]} 4.
c3 {[%clk 0:03:05.5]} 4... Nf6 {[%clk 0:03:01]} 5. d3 {[%clk 0:03:07.1]} 5...
O-O {[%clk 0:02:53.9]} 6. O-O {[%clk 0:03:07.6]} 6... d6 {[%clk 0:02:48.6]} 7.
h3 {[%clk 0:03:08]} 7... a6 {[%clk 0:02:48.4]} 8. Nbd2 {[%clk 0:03:08.6]} 8...
Ba7 {[%clk 0:02:42.2]} 9. Bb3 {[%clk 0:03:09.8]} 9... Be6 {[%clk 0:02:38.5]} 10.
Re1 {[%clk 0:03:10.5]} 10... Bxb3 {[%clk 0:02:22.5]} 11. axb3 {[%clk 0:03:10.6]}
11... h6 {[%clk 0:02:20.9]} 12. Nf1 {[%clk 0:03:11.4]} 12... Ne7 {[%clk
0:02:11]} 13. b4 {[%clk 0:03:12.4]} 13... Bb6 {[%clk 0:02:09]} 14. Ng3 {[%clk
0:03:13.6]} 14... Nh7 {[%clk 0:01:52.4]} 15. Qe2 {[%clk 0:03:10.1]} 15... f5
{[%clk 0:01:46.9]} 16. exf5 {[%clk 0:03:08.5]} 16... Nxf5 {[%clk 0:01:47.9]} 17.
Nxf5 {[%clk 0:03:09.1]} 17... Rxf5 {[%clk 0:01:49.5]} 18. Be3 {[%clk 0:03:10.5]}
18... Bxe3 {[%clk 0:01:46]} 19. fxe3 {[%clk 0:03:12]} 19... Rb8 {[%clk
0:01:27.5]} 20. Nd2 {[%clk 0:03:10.2]} 20... Qd7 {[%clk 0:01:22]} 21. Ne4 {[%clk
0:03:05]} 21... Rbf8 {[%clk 0:01:22]} 22. Rf1 {[%clk 0:03:03.6]} 22... Qe6
{[%clk 0:01:02.5]} 23. Rxf5 {[%clk 0:02:55.4]} 23... Rxf5 {[%clk 0:01:04.4]} 24.
Qg4 {[%clk 0:02:53.6]} 24... Nf8 {[%clk 0:01:02.9]} 25. Ng3 {[%clk 0:02:47.7]}
25... Rf7 {[%clk 0:01:02.3]} 26. Qxe6 {[%clk 0:02:43.3]} 26... Nxe6 {[%clk
0:01:04.2]} 27. Ra5 {[%clk 0:02:34.3]} 27... Kf8 {[%clk 0:00:53.6]} 28. b5
{[%clk 0:02:34.8]} 28... axb5 {[%clk 0:00:54.7]} 29. Rxb5 {[%clk 0:02:36.2]}
29... b6 {[%clk 0:00:56.2]} 30. d4 {[%clk 0:02:36]} 30... exd4 {[%clk
0:00:53.7]} 31. cxd4 {[%clk 0:02:37.4]} 31... Ke7 {[%clk 0:00:49.3]} 32. Nf5+
{[%clk 0:02:37.2]} 32... Kd7 {[%clk 0:00:49.9]} 33. g4 {[%clk 0:02:38]} 33... h5
{[%clk 0:00:48.3]} 34. Kg2 {[%clk 0:02:34.4]} 34... hxg4 {[%clk 0:00:48.3]} 35.
hxg4 {[%clk 0:02:36.3]} 35... Kc6 {[%clk 0:00:38.6]} 36. Rb3 {[%clk 0:02:36.7]}
36... d5 {[%clk 0:00:37.8]} 37. Rc3+ {[%clk 0:02:30.7]} 37... Kd7 {[%clk
0:00:38.6]} 38. b4 {[%clk 0:02:31.8]} 38... Ng5 {[%clk 0:00:37.2]} 39. b5 {[%clk
0:02:29.4]} 39... Ne4 {[%clk 0:00:35.1]} 40. Rc2 {[%clk 0:02:30.6]} 40... g6
{[%clk 0:00:33.6]} 41. Nh4 {[%clk 0:02:29.8]} 41... Rf6 {[%clk 0:00:32.5]} 42.
Nf3 {[%clk 0:02:31.1]} 42... Kc8 {[%clk 0:00:27.9]} 43. Ne5 {[%clk 0:02:29.9]}
43... Kb7 {[%clk 0:00:29]} 44. Nd3 {[%clk 0:02:20.4]} 44... Nd6 {[%clk
0:00:29.6]} 45. Nf4 {[%clk 0:02:17.1]} 45... Nxb5 {[%clk 0:00:28.3]} 46. Nxd5
{[%clk 0:02:18.3]} 46... Rf7 {[%clk 0:00:29.7]} 47. Nf4 {[%clk 0:02:17.7]} 47...
g5 {[%clk 0:00:27.7]} 48. Ne6 {[%clk 0:02:19]} 48... Re7 {[%clk 0:00:28.9]} 49.
d5 {[%clk 0:02:17.3]} 49... Nd6 {[%clk 0:00:23.3]} 50. Kf3 {[%clk 0:02:18.4]}
50... Nf7 {[%clk 0:00:23]} 51. Ke4 {[%clk 0:02:17.5]} 51... Nd6+ {[%clk
0:00:23.7]} 52. Ke5 {[%clk 0:02:16.1]} 52... b5 {[%clk 0:00:23.9]} 53. Kf6
{[%clk 0:02:12.9]} 53... Rf7+ {[%clk 0:00:25.1]} 54. Kxg5 {[%clk 0:02:14.2]}
54... Kb6 {[%clk 0:00:20.1]} 55. Nd4 {[%clk 0:02:11.7]} 55... b4 {[%clk
0:00:17.3]} 56. Kg6 {[%clk 0:02:07.3]} 56... Re7 {[%clk 0:00:16.9]} 57. Ne6
{[%clk 0:01:55]} 57... Ka5 {[%clk 0:00:15.2]} 58. Kf6 {[%clk 0:01:43.8]} 58...
Rf7+ {[%clk 0:00:15.7]} 59. Kg6 {[%clk 0:01:41.9]} 59... b3 {[%clk 0:00:16.9]}
60. Rb2 {[%clk 0:01:38.5]} 60... Kb4 {[%clk 0:00:17.9]} 61. Nd4 {[%clk
0:01:39.9]} 61... Kc4 {[%clk 0:00:15.7]} 62. Rxb3 {[%clk 0:01:34.6]} 62... Kxd5
{[%clk 0:00:16.8]} 63. Nf5 {[%clk 0:01:34.7]} 63... Rd7 {[%clk 0:00:15.6]} 64.
Rd3+ {[%clk 0:01:32.9]} 64... Ke4 {[%clk 0:00:16.5]} 65. Rd4+ {[%clk 0:01:32.9]}
65... Ke5 {[%clk 0:00:16.8]} 66. g5 {[%clk 0:01:32]} 66... c5 {[%clk 0:00:17.4]}
67. Rxd6 {[%clk 0:01:24]} 67... Rxd6+ {[%clk 0:00:17.8]} 68. Nxd6 {[%clk
0:01:25.9]} 68... Kxd6 {[%clk 0:00:18.9]} 69. Kf6 {[%clk 0:01:27.6]} 69... c4
{[%clk 0:00:19.3]} 70. g6 {[%clk 0:01:29.2]} 70... c3 {[%clk 0:00:21.2]} 71. g7
{[%clk 0:01:30.8]} 71... c2 {[%clk 0:00:23.1]} 72. g8=Q {[%clk 0:01:32.1]} 72...
c1=Q {[%clk 0:00:24.1]} 73. Qd8+ {[%clk 0:01:33]} 73... Kc5 {[%clk 0:00:24.9]}
74. Qc8+ {[%clk 0:01:34.4]} 74... Kb4 {[%clk 0:00:25.9]} 75. Qxc1 {[%clk
0:01:36.3]} 1-0